fUST/lending_fUST_20240813
["ID","MTS","AMOUNT","RATE_DAILY","PERIOD"]
[334762130,1723537844730,-500.0,0.00013698,2]
[334762132,1723537844739,-500.0,0.00013698,2]
[334762134,1723537844748,-503.23260538,0.00013698,2]
[334762136,1723537844757,-632.68876494,0.00013698,2]
[334762138,1723537844766,-500.0,0.00013698,2]
[334762140,1723537844776,-737.09,0.00013698,2]
[334762142,1723537844785,-152.972169,0.00013698,2]
[334762144,1723537844795,-515.6222114,0.00013698,2]
[334762146,1723537844804,-501.3757287,0.00013698,2]
[334762148,1723537844825,-500.0,0.00013698,2]
[334762150,1723537844835,-504.97025095,0.00013698,2]
[334762153,1723537844844,-925.78,0.00013698,2]
[334762154,1723537844853,-500.0,0.00013698,2]
[334762155,1723537844862,-564.05,0.00013698,2]
[334762156,1723537844871,-500.0,0.00013698,2]
[334762157,1723537844880,-502.33741563,0.00013698,2]
[334762158,1723537844890,-500.0,0.00013698,2]
[334762160,1723537844899,-499.12860952,0.00013698,2]
[334762162,1723537844908,-504.91032273,0.00013698,2]
[334762164,1723537844917,-504.75377848,0.00013698,2]
[334762166,1723537844926,-500.0,0.00013698,2]
[334762168,1723537844935,-506.22603401,0.00013698,2]
[334762170,1723537844944,-507.19580789,0.00013698,2]
[334762172,1723537844953,-500.0,0.00013698,2]
[334762174,1723537844963,-500.0,0.00013698,2]
[334762176,1723537844973,-205.60716256,0.00013698,2]
[334762178,1723537844983,-500.0,0.00013698,2]
[334762180,1723537844993,-500.0,0.00013698,2]
[334762182,1723537845002,-500.0,0.00013698,2]
[334762184,1723537845011,-620.20536172,0.00013698,2]
[334762186,1723537845022,-500.0,0.00013698,2]
[334762188,1723537845031,-507.85492179,0.00013698,2]
[334762190,1723537845041,-500.0,0.00013698,2]
[334762192,1723537845051,-546.14,0.00013698,2]
[334762194,1723537845061,-500.0,0.00013698,2]
[334762196,1723537845070,-603.57,0.00013698,2]
[334762198,1723537845079,-500.0,0.00013698,2]
[334762200,1723537845088,-500.0,0.00013698,2]
[334762202,1723537845097,-500.72057933,0.00013698,2]
[334762204,1723537845107,-500.0,0.00013698,2]
[334762206,1723537845117,-529.95635248,0.00013698,2]
[334762208,1723537845126,-500.0,0.00013698,2]
[334762210,1723537845135,-500.0,0.00013698,2]
[334762214,1723537845157,-500.0,0.00013698,2]
[334762216,1723537845166,-500.0,0.00013698,2]
[334762217,1723537845176,-500.0,0.00013698,2]
[334762219,1723537845185,-514.14392242,0.00013698,2]
[334762221,1723537845194,-500.0,0.00013698,2]
[334762223,1723537845204,-875.25,0.00013698,2]
[334762225,1723537845213,-504.47820726,0.00013698,2]
[334762227,1723537845222,-500.0,0.00013698,2]
[334762229,1723537845232,-500.0,0.00013698,2]
[334762231,1723537845241,-500.0,0.00013698,2]
[334762233,1723537845250,-506.87032051,0.00013698,2]
[334762235,1723537845259,-512.66756479,0.00013698,2]
[334762237,1723537845269,-500.0,0.00013698,2]
[334762239,1723537845278,-500.0,0.00013698,2]
[334762241,1723537845287,-627.62,0.00013698,2]
[334762243,1723537845299,-500.0,0.00013698,2]
[334762245,1723537845309,-506.59051584,0.00013698,2]
[334762247,1723537845319,-510.6312989,0.00013698,2]
[334762249,1723537845328,-500.0,0.00013698,2]
[334762251,1723537845337,-518.15476045,0.00013698,2]
[334762254,1723537845348,-504.55040292,0.00013698,2]
[334762256,1723537845358,-909.82,0.00013698,2]
[334762258,1723537845367,-500.0,0.00013698,2]
[334762260,1723537845380,-508.4712836,0.00013698,2]
[334762262,1723537845390,-500.0,0.00013698,2]
[334762264,1723537845400,-500.0,0.00013698,2]
[334762266,1723537845409,-860.2,0.00013698,2]
[334762268,1723537845419,-504.38063046,0.00013698,2]
[334762270,1723537845429,-548.31,0.00013698,2]
[334762272,1723537845438,-504.60165406,0.00013698,2]
[334762274,1723537845448,-500.0,0.00013698,2]
[334762276,1723537845457,-656.8,0.00013698,2]
[334762278,1723537845467,-503.76411208,0.00013698,2]
[334762280,1723537845477,-151.0,0.00013698,2]
[334762282,1723537845486,-151.0,0.00013698,2]
[334762285,1723537845496,-151.0,0.00013698,2]
[334762287,1723537845505,-151.0,0.00013698,2]
[334762289,1723537845515,-151.0,0.00013698,2]
[334762291,1723537845524,-151.0,0.00013698,2]
[334762293,1723537845533,-151.0,0.00013698,2]
[334762295,1723537845542,-500.0,0.00013698,2]
[334762297,1723537845552,-151.0,0.00013698,2]
[334762299,1723537845566,-151.0,0.00013698,2]
[334762301,1723537845575,-230.186481,0.00013698,2]
[334762303,1723537845585,-500.0,0.00013698,2]
[334762305,1723537845596,-500.0,0.00013698,2]
[334762307,1723537845606,-500.0,0.00013698,2]
[334762309,1723537845615,-369.171983,0.00013698,2]
[334762311,1723537845625,-369.171983,0.00013698,2]
[334762313,1723537845636,-500.0,0.00013698,2]
[334762315,1723537845646,-369.171983,0.00013698,2]
[334762317,1723537845655,-369.171983,0.00013698,2]
[334762319,1723537845665,-797.5,0.00013698,2]
[334762321,1723537845675,-369.171983,0.00013698,2]
[334762323,1723537845685,-369.171983,0.00013698,2]
[334762325,1723537845694,-369.171983,0.00013698,2]
[334762327,1723537845703,-369.171983,0.00013698,2]
[334762329,1723537845713,-369.171983,0.00013698,2]
[334762331,1723537845722,-369.171983,0.00013698,2]
[334762333,1723537845733,-369.171983,0.00013698,2]
[334762335,1723537845742,-369.171983,0.00013698,2]
[334762337,1723537845752,-369.171983,0.00013698,2]
[334762339,1723537845761,-500.0,0.00013698,2]
[334762341,1723537845771,-369.171983,0.00013698,2]
[334762343,1723537845780,-500.0,0.00013698,2]
[334762346,1723537845791,-527.14743389,0.00013698,2]
[334762348,1723537845800,-500.0,0.00013698,2]
[334762349,1723537845811,-500.0,0.00013698,2]
[334762352,1723537845820,-509.99697858,0.00013698,2]
[334762354,1723537845830,-500.0,0.00013698,2]
[334762356,1723537845839,-500.0,0.00013698,2]
[334762358,1723537845848,-500.0,0.00013698,2]
[334762360,1723537845858,-151.0,0.00013698,2]
[334762362,1723537845868,-151.0,0.00013698,2]
[334762364,1723537845877,-500.0,0.00013698,2]
[334762366,1723537845886,-500.0,0.00013698,2]
[334762368,1723537845896,-786.49,0.00013698,2]
[334762370,1723537845905,-504.0,0.00013698,2]
[334762372,1723537845914,-515.05213383,0.00013698,2]
[334762374,1723537845924,-500.0,0.00013698,2]
[334762376,1723537845933,-500.0,0.00013698,2]
[334762378,1723537845943,-500.0,0.00013698,2]
[334762380,1723537845953,-500.0,0.00013698,2]
[334762382,1723537845963,-505.56303483,0.00013698,2]
[334762384,1723537845972,-500.0,0.00013698,2]
[334762386,1723537845982,-500.0,0.00013698,2]
[334762388,1723537845991,-514.93,0.00013698,2]
[334762390,1723537846000,-1273.33,0.00013698,2]
[334762392,1723537846009,-514.45262368,0.00013698,2]
[334762394,1723537846019,-500.0,0.00013698,2]
[334762396,1723537846028,-500.0,0.00013698,2]
[334762398,1723537846037,-1201.39,0.00013698,2]
[334762400,1723537846046,-500.0,0.00013698,2]
[334762402,1723537846055,-500.0,0.00013698,2]
[334762404,1723537846065,-500.0,0.00013698,2]
[334762407,1723537846075,-151.0,0.00013698,2]
[334762409,1723537846084,-151.0,0.00013698,2]
[334762412,1723537846093,-151.0,0.00013698,2]
[334762414,1723537846102,-151.0,0.00013698,2]
[334762416,1723537846111,-151.0,0.00013698,2]
[334762418,1723537846120,-156.77381,0.00013698,2]
[334762420,1723537846130,-500.0,0.00013698,2]
[334762422,1723537846140,-830.32,0.00013698,2]
[334762424,1723537846150,-500.0,0.00013698,2]
[334762426,1723537846161,-502.55693021,0.00013698,2]
[334762428,1723537846171,-500.0,0.00013698,2]
[334762430,1723537846180,-545.21,0.00013698,2]
[334762432,1723537846189,-564.12758029,0.00013698,2]
[334762434,1723537846198,-500.0,0.00013698,2]
[334762436,1723537846207,-1884.12,0.00013698,2]
[334762439,1723537846216,-300.96958541,0.00013698,2]
[334762441,1723537846226,-286.74941357,0.00013698,2]
[334762443,1723537846237,-500.0,0.00013698,2]
[334762445,1723537846248,-743.92,0.00013698,2]
[334762447,1723537846258,-500.0,0.00013698,2]
[334762449,1723537846267,-500.0,0.00013698,2]
[334762451,1723537846277,-506.75545438,0.00013698,2]
[334762454,1723537846288,-501.03037611,0.00013698,2]
[334762456,1723537846302,-509.45464959,0.00013698,2]
[334762458,1723537846313,-824.42,0.00013698,2]
[334762460,1723537846324,-502.15039408,0.00013698,2]
[334762462,1723537846335,-500.0,0.00013698,2]
[334762464,1723537846346,-500.0,0.00013698,2]
[334762466,1723537846356,-500.0,0.00013698,2]
[334762469,1723537846366,-503.24555776,0.00013698,2]
[334762471,1723537846378,-958.8,0.00013698,2]
[334762473,1723537846389,-500.0,0.00013698,2]
[334762475,1723537846399,-500.6539124,0.00013698,2]
[334762477,1723537846410,-507.79661399,0.00013698,2]
[334762479,1723537846419,-503.6887129,0.00013698,2]
[334762481,1723537846430,-151.0,0.00013698,2]
[334762483,1723537846441,-151.0,0.00013698,2]
[334762485,1723537846450,-505.9565507,0.00013698,2]
[334762487,1723537846460,-151.0,0.00013698,2]
[334762489,1723537846470,-151.0,0.00013698,2]
[334762491,1723537846479,-151.0,0.00013698,2]
[334762493,1723537846489,-151.0,0.00013698,2]
[334762495,1723537846498,-151.0,0.00013698,2]
[334762497,1723537846507,-279.588939,0.00013698,2]
[334762499,1723537846516,-500.0,0.00013698,2]
[334762501,1723537846526,-501.91736511,0.00013698,2]
[334762503,1723537846536,-184.630891,0.00013698,2]
[334762505,1723537846546,-500.0,0.00013698,2]
[334762507,1723537846555,-625.11,0.00013698,2]
[334762510,1723537846566,-500.0,0.00013698,2]
[334762512,1723537846576,-553.9254321,0.00013698,2]
[334762514,1723537846586,-503.34967199,0.00013698,2]
[334762516,1723537846596,-540.34874411,0.00013698,2]
[334762518,1723537846605,-500.0,0.00013698,2]
[334762520,1723537846615,-995.56,0.00013698,2]
[334762522,1723537846624,-505.50713472,0.00013698,2]
[334762524,1723537846634,-500.0,0.00013698,2]
[334762526,1723537846643,-1178.14169129,0.00013698,2]
[334762528,1723537846652,-508.09704504,0.00013698,2]
[334762530,1723537846662,-500.0,0.00013698,2]
[334762532,1723537846671,-500.0,0.00013698,2]
[334762534,1723537846680,-500.0,0.00013698,2]
[334762536,1723537846690,-500.0,0.00013698,2]
[334762538,1723537846699,-500.0,0.00013698,2]
[334762540,1723537846708,-500.0,0.00013698,2]
[334762542,1723537846718,-151.0,0.00013698,2]
[334762544,1723537846728,-151.0,0.00013698,2]
[334762546,1723537846739,-151.0,0.00013698,2]
[334762548,1723537846749,-831.7,0.00013698,2]
[334762551,1723537846759,-151.0,0.00013698,2]
[334762553,1723537846768,-777.764941,0.00013698,2]
[334762555,1723537846778,-777.764941,0.00013698,2]
[334762557,1723537846787,-777.764941,0.00013698,2]
[334762559,1723537846797,-777.764941,0.00013698,2]
[334762561,1723537846809,-500.0,0.00013698,2]
[334762563,1723537846819,-777.764941,0.00013698,2]
[334762565,1723537846829,-777.764941,0.00013698,2]
[334762567,1723537846839,-777.764941,0.00013698,2]
[334762569,1723537846849,-777.764941,0.00013698,2]
[334762571,1723537846860,-919.48,0.00013698,2]
[334762573,1723537846869,-777.764941,0.00013698,2]
[334762575,1723537846879,-509.08617267,0.00013698,2]
[334762577,1723537846891,-777.764941,0.00013698,2]
[334762579,1723537846901,-777.764941,0.00013698,2]
[334762581,1723537846911,-777.764949,0.00013698,2]
[334762584,1723537846922,-500.0,0.00013698,2]
[334762586,1723537846932,-160.556015,0.00013698,2]
[334762588,1723537846941,-500.0,0.00013698,2]
[334762590,1723537846951,-988.602586,0.00013698,2]
[334762592,1723537846961,-988.602586,0.00013698,2]
[334762594,1723537846970,-988.602586,0.00013698,2]
[334762596,1723537846980,-988.602586,0.00013698,2]
[334762598,1723537846990,-988.602586,0.00013698,2]
[334762600,1723537847000,-988.602586,0.00013698,2]
[334762602,1723537847010,-988.602586,0.00013698,2]
[334762604,1723537847020,-988.602586,0.00013698,2]
[334762606,1723537847030,-988.602586,0.00013698,2]
[334762608,1723537847040,-500.0,0.00013698,2]
[334762610,1723537847050,-680.9,0.00013698,2]
[334762624,1723537847178,-988.602586,0.00013698,2]
[334762626,1723537847189,-988.602586,0.00013698,2]
[334762629,1723537847199,-988.60259,0.00013698,2]
[334762631,1723537847209,-500.0,0.00013698,2]
[334762633,1723537847219,-763.965841,0.00013698,2]
[334762635,1723537847228,-763.965841,0.00013698,2]
[334762637,1723537847237,-702.43,0.00013698,2]
[334762639,1723537847248,-763.965841,0.00013698,2]
[334762641,1723537847258,-763.965841,0.00013698,2]
[334762643,1723537847268,-763.965841,0.00013698,2]
[334762645,1723537847277,-763.965841,0.00013698,2]
[334762647,1723537847286,-500.0,0.00013698,2]
[334762649,1723537847299,-763.965841,0.00013698,2]
[334762651,1723537847311,-470.61676239,0.00013698,2]
[334762653,1723537847320,-500.0,0.00013698,2]
[334762655,1723537847330,-763.965841,0.00013698,2]
[334762657,1723537847340,-763.965841,0.00013698,2]
[334762659,1723537847350,-763.965841,0.00013698,2]
[334762661,1723537847360,-763.965841,0.00013698,2]
[334762663,1723537847369,-763.965837,0.00013698,2]
[334762665,1723537847381,-809.2,0.00013698,2]
[334762667,1723537847391,-500.0,0.00013698,2]
[334762669,1723537847401,-500.0,0.00013698,2]
[334762671,1723537847411,-500.0,0.00013698,2]
[334762673,1723537847420,-500.0,0.00013698,2]
[334762675,1723537847430,-500.0,0.00013698,2]
[334762677,1723537847440,-500.0,0.00013698,2]
[334762680,1723537847450,-4779.48,0.00013698,2]
[334762682,1723537847460,-4779.48,0.00013698,2]
[334762684,1723537847470,-4779.48,0.00013698,2]
[334762686,1723537847481,-4779.48,0.00013698,2]
[334762688,1723537847491,-4779.48,0.00013698,2]
[334762690,1723537847500,-4779.48,0.00013698,2]
[334762692,1723537847510,-500.0,0.00013698,2]
[334762694,1723537847519,-4779.48,0.00013698,2]
[334762696,1723537847528,-500.0,0.00013698,2]
[334762699,1723537847538,-4779.48,0.00013698,2]
[334762701,1723537847547,-4779.48,0.00013698,2]
[334762703,1723537847558,-4779.48,0.00013698,2]
[334762705,1723537847568,-4779.48,0.00013698,2]
[334762707,1723537847578,-4779.48,0.00013698,2]
[334762709,1723537847588,-4779.48,0.00013698,2]
[334762711,1723537847599,-4779.48,0.00013698,2]
[334762713,1723537847610,-500.0,0.00013698,2]
[334762715,1723537847620,-4779.48,0.00013698,2]
[334762718,1723537847631,-4779.48,0.00013698,2]
[334762720,1723537847643,-4779.48,0.00013698,2]
[334762722,1723537847653,-4779.48,0.00013698,2]
[334762724,1723537847664,-500.0,0.00013698,2]
[334762726,1723537847673,-4779.48,0.00013698,2]
[334762728,1723537847683,-4779.48,0.00013698,2]
[334762730,1723537847694,-4779.48,0.00013698,2]
[334762733,1723537847705,-4779.48,0.00013698,2]
[334762735,1723537847717,-4378.29,0.00013698,2]
[334762737,1723537847730,-4779.48,0.00013698,2]
[334762739,1723537847740,-4779.62527331,0.00013698,2]
[334762741,1723537847751,-633.309903,0.00013698,2]
[334762744,1723537847761,-633.309903,0.00013698,2]
[334762746,1723537847772,-500.0,0.00013698,2]
[334762748,1723537847782,-633.309903,0.00013698,2]
[334762750,1723537847792,-633.309903,0.00013698,2]
[334762752,1723537847802,-633.309903,0.00013698,2]
[334762754,1723537847820,-500.0,0.00013698,2]
[334762756,1723537847830,-500.0,0.00013698,2]
[334762758,1723537847840,-633.309903,0.00013698,2]
[334762760,1723537847850,-633.309903,0.00013698,2]
[334762762,1723537847859,-633.309903,0.00013698,2]
[334762764,1723537847869,-633.309903,0.00013698,2]
[334762766,1723537847878,-633.309899,0.00013698,2]
[334762768,1723537847887,-1134.62,0.00013698,2]
[334762770,1723537847897,-2261.14,0.00013698,2]
[334762772,1723537847907,-500.0,0.00013698,2]
[334762774,1723537847916,-1505.01,0.00013698,2]
[334762776,1723537847925,-507.02549008,0.00013698,2]
[334762778,1723537847935,-510.88917413,0.00013698,2]
[334762780,1723537847945,-500.0,0.00013698,2]
[334762782,1723537847955,-500.0,0.00013698,2]
[334762784,1723537847965,-500.0,0.00013698,2]
[334762786,1723537847975,-500.0,0.00013698,2]
[334762788,1723537847984,-639.48,0.00013698,2]
[334762790,1723537847994,-500.0,0.00013698,2]
[334762792,1723537848003,-561.5535722,0.00013698,2]
[334762794,1723537848012,-500.0,0.00013698,2]
[334762796,1723537848022,-510.26957456,0.00013698,2]
[334762798,1723537848031,-505.62042349,0.00013698,2]
[334762800,1723537848041,-504.12316771,0.00013698,2]
[334762802,1723537848051,-500.0,0.00013698,2]
[334762805,1723537848062,-502.93887016,0.00013698,2]
[334762807,1723537848072,-1583.11,0.00013698,2]
[334762809,1723537848082,-917.9,0.00013698,2]
[334762811,1723537848092,-500.0,0.00013698,2]
[334762813,1723537848102,-500.0,0.00013698,2]
[334762815,1723537848113,-527.13,0.00013698,2]
[334762817,1723537848123,-500.0,0.00013698,2]
[334762819,1723537848132,-500.0,0.00013698,2]
[334762821,1723537848142,-500.0,0.00013698,2]
[334762823,1723537848151,-286.356023,0.00013698,2]
[334762825,1723537848161,-500.0,0.00013698,2]
[334762828,1723537848171,-1585.62,0.00013698,2]
[334762829,1723537848180,-500.0,0.00013698,2]
[334762832,1723537848189,-500.0,0.00013698,2]
[334762833,1723537848198,-500.0,0.00013698,2]
[334762835,1723537848207,-500.0,0.00013698,2]
[334762837,1723537848218,-976.77,0.00013698,2]
[334762839,1723537848227,-500.0,0.00013698,2]
[334762841,1723537848237,-1734.21,0.00013698,2]
[334762843,1723537848246,-500.0,0.00013698,2]
[334762845,1723537848255,-500.0,0.00013698,2]
[334762847,1723537848265,-500.0,0.00013698,2]
[334762849,1723537848275,-500.7342009,0.00013698,2]
[334762851,1723537848284,-500.0,0.00013698,2]
[334762853,1723537848295,-500.0,0.00013698,2]
[334762856,1723537848308,-284.263478,0.00013698,2]
[334762858,1723537848317,-284.263478,0.00013698,2]
[334762860,1723537848327,-284.263478,0.00013698,2]
[334762862,1723537848336,-284.263478,0.00013698,2]
[334762864,1723537848347,-500.0,0.00013698,2]
[334762866,1723537848356,-284.263478,0.00013698,2]
[334762868,1723537848366,-284.263478,0.00013698,2]
[334762870,1723537848378,-500.0,0.00013698,2]
[334762872,1723537848387,-284.263478,0.00013698,2]
[334762874,1723537848397,-284.263478,0.00013698,2]
[334762875,1723537848407,-284.263478,0.00013698,2]
[334762877,1723537848416,-284.263478,0.00013698,2]
[334762879,1723537848425,-284.263478,0.00013698,2]
[334762881,1723537848435,-284.263478,0.00013698,2]
[334762883,1723537848445,-270.742307,0.00013698,2]
[334762885,1723537848454,-500.0,0.00013698,2]
[334762887,1723537848464,-1315.3,0.00013698,2]
[334762889,1723537848474,-509.34772993,0.00013698,2]
[334762891,1723537848483,-1438.778583,0.00013698,2]
[334762894,1723537848493,-1438.778583,0.00013698,2]
[334762896,1723537848503,-1438.778583,0.00013698,2]
[334762898,1723537848514,-1438.778583,0.00013698,2]
[334762900,1723537848523,-1438.778583,0.00013698,2]
[334762902,1723537848533,-500.0,0.00013698,2]
[334762904,1723537848543,-1438.778583,0.00013698,2]
[334762906,1723537848553,-500.0,0.00013698,2]
[334762908,1723537848565,-500.0,0.00013698,2]
[334762910,1723537848575,-387.24154549,0.00013698,2]
[334762912,1723537848585,-1438.778583,0.00013698,2]
[334762914,1723537848595,-1438.778583,0.00013698,2]
[334762916,1723537848605,-1438.778583,0.00013698,2]
[334762918,1723537848615,-1438.778583,0.00013698,2]
[334762920,1723537848625,-1438.778583,0.00013698,2]
[334762922,1723537848634,-1438.778575,0.00013698,2]
[334762924,1723537848644,-500.0,0.00013698,2]
[334762926,1723537848654,-500.0,0.00013698,2]
[334762928,1723537848664,-500.0,0.00013698,2]
[334762930,1723537848674,-546.2636575,0.00013698,2]
[334762932,1723537848684,-7367.39,0.00013698,2]
[334762934,1723537848694,-500.0,0.00013698,2]
[334762936,1723537848704,-595.3,0.00013698,2]
[334762938,1723537848714,-179.847705,0.00013698,2]
[334762940,1723537848724,-179.847705,0.00013698,2]
[334762942,1723537848734,-179.847705,0.00013698,2]
[334762944,1723537848744,-179.847705,0.00013698,2]
[334762946,1723537848754,-179.847705,0.00013698,2]
[334762948,1723537848763,-179.847705,0.00013698,2]
[334762950,1723537848777,-995.73,0.00013698,2]
[334762952,1723537848787,-505.22362471,0.00013698,2]
[334762954,1723537848796,-179.847705,0.00013698,2]
[334762956,1723537848807,-500.0,0.00013698,2]
[334762958,1723537848819,-179.847705,0.00013698,2]
[334762960,1723537848828,-179.847705,0.00013698,2]
[334762962,1723537848838,-500.0,0.00013698,2]
[334762964,1723537848848,-500.0,0.00013698,2]
[334762966,1723537848858,-179.847705,0.00013698,2]
[334762968,1723537848867,-500.0,0.00013698,2]
[334762970,1723537848878,-179.847705,0.00013698,2]
[334762972,1723537848887,-500.0,0.00013698,2]
[334762974,1723537848897,-179.847707,0.00013698,2]
[334762976,1723537848907,-500.0,0.00013698,2]
[334762978,1723537848917,-500.0,0.00013698,2]
[334762980,1723537848927,-500.0,0.00013698,2]
[334762982,1723537848936,-500.0,0.00013698,2]
[334762984,1723537848946,-500.0,0.00013698,2]
[334762985,1723537848956,-500.0,0.00013698,2]
[334762987,1723537848966,-500.0,0.00013698,2]
[334762989,1723537848976,-501.73655311,0.00013698,2]
[334762991,1723537848985,-500.0,0.00013698,2]
[334762993,1723537848994,-353.68,0.00013698,2]
[334762995,1723537849004,-221.25196166,0.00013698,2]
[334762997,1723537849014,-500.0,0.00013698,2]
[334762999,1723537849023,-500.0,0.00013698,2]
[334763001,1723537849033,-1924.78,0.00013698,2]
[334763003,1723537849042,-2441.51,0.00013698,2]
[334763005,1723537849052,-500.0,0.00013698,2]
[334763007,1723537849066,-504.64,0.00013698,2]
[334763009,1723537849077,-500.0,0.00013698,2]
[334763011,1723537849087,-1026.0,0.00013698,2]
[334763013,1723537849096,-1372.19,0.00013698,2]
[334763015,1723537849106,-500.0,0.00013698,2]
[334763017,1723537849115,-500.0,0.00013698,2]
[334763019,1723537849126,-500.0,0.00013698,2]
[334763021,1723537849136,-825.12,0.00013698,2]
[334763023,1723537849145,-503.26821161,0.00013698,2]
[334763025,1723537849155,-1218.76,0.00013698,2]
[334763027,1723537849165,-501.56277265,0.00013698,2]
[334763029,1723537849174,-500.83788809,0.00013698,2]
[334763031,1723537849185,-500.0,0.00013698,2]
[334763033,1723537849196,-500.0,0.00013698,2]
[334763035,1723537849206,-504.35557041,0.00013698,2]
[334763037,1723537849216,-500.0,0.00013698,2]
[334763039,1723537849225,-510.0778045,0.00013698,2]
[334763041,1723537849235,-203.485934,0.00013698,2]
[334763043,1723537849245,-203.485934,0.00013698,2]
[334763045,1723537849256,-500.0,0.00013698,2]
[334763047,1723537849266,-203.485934,0.00013698,2]
[334763049,1723537849275,-2009.64,0.00013698,2]
[334763051,1723537849285,-203.485934,0.00013698,2]
[334763053,1723537849295,-500.0,0.00013698,2]
[334763055,1723537849309,-203.485934,0.00013698,2]
[334763058,1723537849318,-203.485934,0.00013698,2]
[334763059,1723537849327,-525.95628427,0.00013698,2]
[334763061,1723537849338,-5418.04,0.00013698,2]
[334763063,1723537849348,-203.485934,0.00013698,2]
[334763065,1723537849357,-203.485934,0.00013698,2]
[334763067,1723537849367,-203.485934,0.00013698,2]
[334763069,1723537849378,-203.485934,0.00013698,2]
[334763071,1723537849387,-203.485934,0.00013698,2]
[334763073,1723537849397,-203.485933,0.00013698,2]
[334763075,1723537849406,-502.36474691,0.00013698,2]
[334763077,1723537849416,-666.76,0.00013698,2]
[334763079,1723537849425,-500.0,0.00013698,2]
[334763081,1723537849435,-500.0,0.00013698,2]
[334763083,1723537849445,-510.28057163,0.00013698,2]
[334763085,1723537849455,-1515.4,0.00013698,2]
[334763087,1723537849465,-7239.45,0.00013698,2]
[334763089,1723537849475,-500.0,0.00013698,2]
[334763091,1723537849484,-502.66791495,0.00013698,2]
[334763093,1723537849495,-1080.56,0.00013698,2]
[334763095,1723537849505,-1487.36,0.00013698,2]
[334763097,1723537849514,-500.0,0.00013698,2]
[334763099,1723537849523,-770.77,0.00013698,2]
[334763101,1723537849533,-500.0,0.00013698,2]
[334763103,1723537849543,-500.0,0.00013698,2]
[334763105,1723537849553,-556.74602454,0.00013698,2]
[334763107,1723537849565,-3754.47,0.00013698,2]
[334763109,1723537849574,-3930.98,0.00013698,2]
[334763111,1723537849584,-500.0,0.00013698,2]
[334763113,1723537849593,-502.39977827,0.00013698,2]
[334763115,1723537849602,-500.0,0.00013698,2]
[334763117,1723537849612,-584.06,0.00013698,2]
[334763119,1723537849621,-1323.5,0.00013698,2]
[334763124,1723537849664,-422.428321,0.00013698,2]
[334763126,1723537849674,-422.428321,0.00013698,2]
[334763129,1723537849684,-500.0,0.00013698,2]
[334763131,1723537849693,-422.428321,0.00013698,2]
[334763133,1723537849703,-422.428321,0.00013698,2]
[334763135,1723537849713,-507.49307374,0.00013698,2]
[334763136,1723537849722,-422.428321,0.00013698,2]
[334763138,1723537849732,-503.56450761,0.00013698,2]
[334763140,1723537849741,-422.428321,0.00013698,2]
[334763142,1723537849750,-422.428321,0.00013698,2]
[334763144,1723537849760,-422.428321,0.00013698,2]
[334763146,1723537849769,-422.428321,0.00013698,2]
[334763148,1723537849778,-500.0,0.00013698,2]
[334763150,1723537849787,-500.0,0.00013698,2]
[334763152,1723537849796,-500.0,0.00013698,2]
[334763154,1723537849805,-422.428322,0.00013698,2]
[334763156,1723537849824,-755.85158,0.00013698,2]
[334763158,1723537849834,-755.85158,0.00013698,2]